fUSD/lending_fUSD_20260612
["ID","MTS","AMOUNT","RATE_DAILY","PERIOD"]
[424862751,1781212247000,-279.0,0.00033151,30]
[424862755,1781212247000,-422.09773,0.00033177,120]
[424862750,1781212247000,-260.0,0.00033151,30]
[424862710,1781212247000,-794.63877252,0.00033,120]
[424862733,1781212247000,-160.0,0.00033,30]
[424862744,1781212247000,-337.0,0.0003315,30]
[424862756,1781212247000,-199.0,0.000332,30]
[424862726,1781212247000,-190.70801845,0.00033,120]
[424862712,1781212247000,-862.3682448,0.00033,120]
[424862734,1781212247000,-160.0,0.00033,10]
[424862713,1781212247000,-184.54162468,0.00033,120]
[424862719,1781212247000,-168.3978096,0.00033,120]
[424862711,1781212247000,-160.76412736,0.00033,120]
[424862709,1781212247000,-657.31627002,0.00033,120]
[424862714,1781212247000,-172.54293024,0.00033,120]
[424862717,1781212247000,-178.25990567,0.00033,120]
[424862715,1781212247000,-200.02195816,0.00033,120]
[424862718,1781212247000,-205.39761631,0.00033,120]
[424862721,1781212247000,-1074.78927319,0.00033,120]
[424862716,1781212247000,-743.49307148,0.00033,120]
[424862730,1781212247000,-5189.999999,0.00033,30]
[424862727,1781212247000,-62928.82277024,0.00033,2]
[424862728,1781212247000,-215.95576085,0.00033,30]
[424862724,1781212247000,-186.27637768,0.00033,120]
[424862720,1781212247000,-212.97669287,0.00033,120]
[424862732,1781212247000,-160.0,0.00033,120]
[424862725,1781212247000,-223.68790151,0.00033,120]
[424862722,1781212247000,-188.4317516,0.00033,120]
[424862723,1781212247000,-174.25490651,0.00033,120]
[424862729,1781212247000,-185.87068678,0.00033,120]
[424862731,1781212247000,-470.22,0.00033,7]
[424862791,1781212248000,-350.0,0.00033928,8]
[424862788,1781212248000,-223.68790151,0.000339,120]
[424862786,1781212248000,-174.25490651,0.000339,120]
[424862795,1781212248000,-387.56306584,0.0003398,30]
[424862787,1781212248000,-186.27637768,0.000339,120]
[424862797,1781212248000,-708.09039993,0.00034,30]
[424862796,1781212248000,-215.95576085,0.00034,10]
[424862792,1781212248000,-372.26,0.00033973,5]
[424862793,1781212248000,-1570.0,0.00033973,30]
[424862790,1781212248000,-443.09253188,0.000339,6]
[424862789,1781212248000,-190.70801845,0.000339,120]
[424862794,1781212248000,-199.93762835,0.00033973,5]
[424862805,1781212248000,-708.09039993,0.00034,60]
[424862808,1781212248000,-400.358187,0.00034078,120]
[424862798,1781212248000,-708.09039993,0.00034,30]
[424862800,1781212248000,-708.09039993,0.00034,30]
[424862802,1781212248000,-708.09039993,0.00034,30]
[424862801,1781212248000,-708.09039993,0.00034,30]
[424862807,1781212248000,-150.0,0.00034002,2]
[424862803,1781212248000,-708.09039993,0.00034,60]
[424862804,1781212248000,-708.09039993,0.00034,60]
[424862806,1781212248000,-1134.0,0.00034,7]
[424862809,1781212248000,-301.293,0.00034099,2]
[424862785,1781212248000,-1074.78927319,0.000339,120]
[424862799,1781212248000,-708.09039993,0.00034,30]
[424862780,1781212248000,-862.3682448,0.000339,120]
[424862759,1781212248000,-12103.0,0.00033399,10]
[424862782,1781212248000,-200.02195816,0.000339,120]
[424862811,1781212248000,-177.42,0.00034122,30]
[424862757,1781212248000,-468.87,0.00033386,7]
[424862758,1781212248000,-300.0,0.00033397,10]
[424862760,1781212248000,-215.0,0.00033399,3]
[424862761,1781212248000,-300.0,0.00033424,10]
[424862762,1781212248000,-1570.0,0.00033425,30]
[424862764,1781212248000,-400.0,0.00033496,2]
[424862767,1781212248000,-515.0,0.00033657,16]
[424862763,1781212248000,-422.09773,0.00033477,120]
[424862765,1781212248000,-400.0,0.00033496,2]
[424862771,1781212248000,-1570.0,0.00033699,30]
[424862766,1781212248000,-500.0,0.00033592,26]
[424862774,1781212248000,-400.992844,0.00033777,120]
[424862768,1781212248000,-385.21502296,0.00033658,4]
[424862769,1781212248000,-152.5314,0.00033659,2]
[424862770,1781212248000,-4510.0,0.00033664,5]
[424862773,1781212248000,-500.0,0.00033757,120]
[424862772,1781212248000,-150.337395,0.0003374,2]
[424862776,1781212248000,-342.14413463,0.00033842,60]
[424862777,1781212248000,-187.69831663,0.000339,120]
[424862775,1781212248000,-500.0,0.00033842,60]
[424862779,1781212248000,-794.63877252,0.000339,120]
[424862778,1781212248000,-657.31627002,0.000339,120]
[424862784,1781212248000,-212.97669287,0.000339,120]
[424862783,1781212248000,-743.49307148,0.000339,120]
[424862781,1781212248000,-172.54293024,0.000339,120]
[424862812,1781212248000,-662.02072178,0.00034135,2]
[424862840,1781212248000,-300.0,0.00034468,2]
[424862816,1781212248000,-155.0,0.0003415,30]
[424862867,1781212248000,-300.0,0.00034468,2]
[424862845,1781212248000,-300.0,0.00034468,2]
[424862854,1781212248000,-300.0,0.00034468,2]
[424862846,1781212248000,-300.0,0.00034468,2]
[424862844,1781212248000,-834.28394638,0.00034468,2]
[424862847,1781212248000,-1098.78445781,0.00034468,2]
[424862853,1781212248000,-300.0,0.00034468,2]
[424862848,1781212248000,-300.0,0.00034468,2]
[424862851,1781212248000,-300.0,0.00034468,2]
[424862850,1781212248000,-300.0,0.00034468,2]
[424862852,1781212248000,-300.0,0.00034468,2]
[424862841,1781212248000,-300.0,0.00034468,2]
[424862849,1781212248000,-300.0,0.00034468,2]
[424862857,1781212248000,-300.0,0.00034468,2]
[424862856,1781212248000,-300.0,0.00034468,2]
[424862859,1781212248000,-300.00000099,0.00034468,2]
[424862858,1781212248000,-300.0,0.00034468,2]
[424862860,1781212248000,-300.0,0.00034468,2]
[424862864,1781212248000,-300.0,0.00034468,2]
[424862863,1781212248000,-300.0,0.00034468,2]
[424862862,1781212248000,-300.0,0.00034468,2]
[424862861,1781212248000,-494.26340531,0.00034468,2]
[424862865,1781212248000,-606.59953242,0.00034468,2]
[424862866,1781212248000,-300.0,0.00034468,2]
[424862855,1781212248000,-300.0,0.00034468,2]
[424862836,1781212248000,-10624.1020305,0.0003442,2]
[424862818,1781212248000,-337.0,0.0003415,30]
[424862839,1781212248000,-407.0,0.00034453,2]
[424862815,1781212248000,-338.0,0.0003415,30]
[424862810,1781212248000,-199.0,0.000341,30]
[424862814,1781212248000,-248.0,0.0003415,30]
[424862813,1781212248000,-11087.14880846,0.00034135,2]
[424862819,1781212248000,-788.0,0.0003415,30]
[424862817,1781212248000,-267.0,0.0003415,30]
[424862821,1781212248000,-241.0,0.0003415,30]
[424862842,1781212248000,-300.0,0.00034468,2]
[424862820,1781212248000,-1270.0,0.0003415,30]
[424862822,1781212248000,-199.0,0.0003415,30]
[424862823,1781212248000,-448.0,0.0003415,30]
[424862832,1781212248000,-327.59,0.00034246,30]
[424862831,1781212248000,-453.37,0.00034215,7]
[424862826,1781212248000,-865.0,0.00034151,30]
[424862824,1781212248000,-260.0,0.00034151,30]
[424862843,1781212248000,-300.0,0.00034468,2]
[424862838,1781212248000,-407.0,0.00034453,2]
[424862837,1781212248000,-407.0,0.00034453,2]
[424862834,1781212248000,-515.0,0.00034283,17]
[424862835,1781212248000,-415.316286,0.00034378,120]
[424862830,1781212248000,-167.46807175,0.00034186,2]
[424862828,1781212248000,-168.57,0.0003417,60]
[424862829,1781212248000,-1150.5,0.00034182,7]
[424862827,1781212248000,-195.0,0.00034151,30]
[424862825,1781212248000,-279.0,0.00034151,30]
[424862833,1781212248000,-1570.0,0.00034247,30]
[424862905,1781212249000,-300.0,0.00034468,2]
[424862900,1781212249000,-300.0,0.00034468,2]
[424862904,1781212249000,-300.0,0.00034468,2]
[424862902,1781212249000,-1345.05845532,0.00034468,2]
[424862901,1781212249000,-300.0,0.00034468,2]
[424862906,1781212249000,-596.07542324,0.00034468,2]
[424862899,1781212249000,-310.59667688,0.00034468,2]
[424862898,1781212249000,-300.0,0.00034468,2]
[424862896,1781212249000,-300.0,0.00034468,2]
[424862897,1781212249000,-300.0,0.00034468,2]
[424862903,1781212249000,-300.0,0.00034468,2]
[424862919,1781212249000,-300.0,0.00034468,2]
[424862916,1781212249000,-300.0,0.00034468,2]
[424862917,1781212249000,-300.0,0.00034468,2]
[424862907,1781212249000,-300.0,0.00034468,2]
[424862909,1781212249000,-512.9116401,0.00034468,2]
[424862910,1781212249000,-300.0,0.00034468,2]
[424862911,1781212249000,-583.05784622,0.00034468,2]
[424862912,1781212249000,-300.0,0.00034468,2]
[424862913,1781212249000,-453.35117681,0.00034468,2]
[424862914,1781212249000,-300.0,0.00034468,2]
[424862915,1781212249000,-300.0,0.00034468,2]
[424862918,1781212249000,-300.0,0.00034468,2]
[424862891,1781212249000,-300.0,0.00034468,2]
[424862908,1781212249000,-300.0,0.00034468,2]
[424862894,1781212249000,-1803.5984271,0.00034468,2]
[424862879,1781212249000,-300.0,0.00034468,2]
[424862892,1781212249000,-867.43380422,0.00034468,2]
[424862920,1781212249000,-445.16888154,0.00034468,2]
[424862869,1781212249000,-300.0,0.00034468,2]
[424862868,1781212249000,-300.0,0.00034468,2]
[424862873,1781212249000,-728.64234087,0.00034468,2]
[424862870,1781212249000,-300.0,0.00034468,2]
[424862871,1781212249000,-535.71068605,0.00034468,2]
[424862872,1781212249000,-597.59832809,0.00034468,2]
[424862874,1781212249000,-300.0,0.00034468,2]
[424862876,1781212249000,-300.0,0.00034468,2]
[424862880,1781212249000,-300.0,0.00034468,2]
[424862878,1781212249000,-301.53549973,0.00034468,2]
[424862895,1781212249000,-300.0,0.00034468,2]
[424862877,1781212249000,-300.5481852,0.00034468,2]
[424862881,1781212249000,-300.0,0.00034468,2]
[424862882,1781212249000,-300.0,0.00034468,2]
[424862885,1781212249000,-300.0,0.00034468,2]
[424862884,1781212249000,-300.0,0.00034468,2]
[424862883,1781212249000,-300.0,0.00034468,2]
[424862886,1781212249000,-345.05091273,0.00034468,2]
[424862887,1781212249000,-528.57447289,0.00034468,2]
[424862888,1781212249000,-300.0,0.00034468,2]
[424862889,1781212249000,-300.0,0.00034468,2]
[424862890,1781212249000,-300.0,0.00034468,2]
[424862893,1781212249000,-952.35439639,0.00034468,2]
[424862875,1781212249000,-302.76104972,0.00034468,2]
[424862921,1781212249000,-300.0,0.00034468,2]
[424862922,1781212249000,-300.0,0.00034468,2]
[424862978,1781212249000,-300.0,0.00034468,2]
[424862964,1781212249000,-300.0,0.00034468,2]
[424862954,1781212249000,-535.71068605,0.00034468,2]
[424862956,1781212249000,-728.64234087,0.00034468,2]
[424862955,1781212249000,-300.0,0.00034468,2]
[424862957,1781212249000,-300.0,0.00034468,2]
[424862953,1781212249000,-300.0,0.00034468,2]
[424862962,1781212249000,-300.0,0.00034468,2]
[424862959,1781212249000,-300.0,0.00034468,2]
[424862958,1781212249000,-302.76104972,0.00034468,2]
[424862961,1781212249000,-300.5481852,0.00034468,2]
[424862963,1781212249000,-300.0,0.00034468,2]
[424862965,1781212249000,-300.0,0.00034468,2]
[424862968,1781212249000,-300.0,0.00034468,2]
[424862969,1781212249000,-345.05091273,0.00034468,2]
[424862972,1781212249000,-300.0,0.00034468,2]
[424862971,1781212249000,-300.0,0.00034468,2]
[424862970,1781212249000,-528.57447289,0.00034468,2]
[424862966,1781212249000,-300.0,0.00034468,2]
[424862967,1781212249000,-300.0,0.00034468,2]
[424862973,1781212249000,-300.0,0.00034468,2]
[424862975,1781212249000,-867.43380422,0.00034468,2]
[424862974,1781212249000,-300.0,0.00034468,2]
[424862977,1781212249000,-1803.5984271,0.00034468,2]
[424862976,1781212249000,-952.35439639,0.00034468,2]
[424862929,1781212249000,-300.0,0.00034468,2]
[424862948,1781212249000,-606.59953242,0.00034468,2]
[424862950,1781212249000,-300.0,0.00034468,2]
[424862960,1781212249000,-301.53549973,0.00034468,2]
[424862951,1781212249000,-300.0,0.00034468,2]
[424862947,1781212249000,-300.0,0.00034468,2]
[424862925,1781212249000,-300.0,0.00034468,2]
[424862930,1781212249000,-1098.78445781,0.00034468,2]
[424862927,1781212249000,-834.28394638,0.00034468,2]
[424862923,1781212249000,-300.0,0.00034468,2]
[424862926,1781212249000,-300.0,0.00034468,2]
[424862928,1781212249000,-300.0,0.00034468,2]
[424862931,1781212249000,-300.0,0.00034468,2]
[424862932,1781212249000,-300.0,0.00034468,2]
[424862933,1781212249000,-300.0,0.00034468,2]
[424862935,1781212249000,-300.0,0.00034468,2]
[424862934,1781212249000,-300.0,0.00034468,2]
[424862936,1781212249000,-300.0,0.00034468,2]
[424862924,1781212249000,-300.0,0.00034468,2]
[424862943,1781212249000,-494.26340531,0.00034468,2]
[424862937,1781212249000,-300.0,0.00034468,2]
[424862938,1781212249000,-300.0,0.00034468,2]
[424862941,1781212249000,-300.0,0.00034468,2]
[424862939,1781212249000,-300.0,0.00034468,2]
[424862942,1781212249000,-300.0,0.00034468,2]
[424862949,1781212249000,-300.0,0.00034468,2]
[424862945,1781212249000,-300.0,0.00034468,2]
[424862940,1781212249000,-300.0,0.00034468,2]
[424862946,1781212249000,-300.0,0.00034468,2]
[424862952,1781212249000,-300.0,0.00034468,2]
[424862944,1781212249000,-494.52733572,0.00034468,2]
[424863014,1781212250000,-206.40590301,0.00034485,2]
[424863007,1781212250000,-248.3337725,0.00034471,60]
[424863020,1781212250000,-2100.4541,0.00034526,2]
[424863016,1781212250000,-151.0,0.00034485,2]
[424863019,1781212250000,-1570.0,0.00034521,30]
[424863004,1781212250000,-710.9591389,0.00034471,60]
[424863012,1781212250000,-161.8706584,0.00034471,60]
[424863013,1781212250000,-455.7435446,0.00034471,60]
[424863011,1781212250000,-373.3527346,0.00034471,60]
[424863021,1781212250000,-2886.1885,0.00034526,2]
[424863018,1781212250000,-7243.13401685,0.000345,120]
[424863015,1781212250000,-303.00381317,0.00034485,2]
[424863010,1781212250000,-190.900207,0.00034471,60]
[424863034,1781212250000,-2977.5286,0.0003465,2]
[424863022,1781212250000,-2977.5286,0.00034526,2]
[424863023,1781212250000,-9226.68,0.00034544,60]
[424863024,1781212250000,-168.08,0.0003459,30]
[424863032,1781212250000,-167.0,0.00034644,3]
[424863025,1781212250000,-500.0,0.000346,28]
[424863026,1781212250000,-1406.28129704,0.000346,60]
[424863033,1781212250000,-2886.1885,0.0003465,2]
[424863027,1781212250000,-1274.0,0.0003462,2]
[424863029,1781212250000,-228.0,0.00034622,3]
[424863028,1781212250000,-1227.0,0.0003462,2]
[424863031,1781212250000,-218.0,0.00034635,3]
[424863017,1781212250000,-202.8,0.00034486,120]
[424863006,1781212250000,-158.4519669,0.00034471,60]
[424863030,1781212250000,-191.0,0.00034632,3]
[424863008,1781212250000,-649.4414074,0.00034471,60]
[424862980,1781212250000,-300.0,0.00034468,2]
[424862982,1781212250000,-310.59667688,0.00034468,2]
[424862986,1781212250000,-300.0,0.00034468,2]
[424862981,1781212250000,-300.0,0.00034468,2]
[424862979,1781212250000,-300.0,0.00034468,2]
[424862983,1781212250000,-300.0,0.00034468,2]
[424862985,1781212250000,-1345.05845532,0.00034468,2]
[424862984,1781212250000,-300.0,0.00034468,2]
[424862988,1781212250000,-300.0,0.00034468,2]
[424862987,1781212250000,-300.0,0.00034468,2]
[424862989,1781212250000,-596.07542324,0.00034468,2]
[424862991,1781212250000,-300.0,0.00034468,2]
[424862999,1781212250000,-300.0,0.00034468,2]
[424862997,1781212250000,-300.0,0.00034468,2]
[424862995,1781212250000,-300.0,0.00034468,2]
[424862998,1781212250000,-300.0,0.00034468,2]
[424862990,1781212250000,-300.0,0.00034468,2]
[424862994,1781212250000,-583.05784622,0.00034468,2]
[424862993,1781212250000,-300.0,0.00034468,2]
[424862996,1781212250000,-453.35117681,0.00034468,2]
[424863001,1781212250000,-300.0,0.00034468,2]
[424863003,1781212250000,-259.6608252,0.00034471,60]
[424863000,1781212250000,-300.0,0.00034468,2]
[424863009,1781212250000,-156.2420867,0.00034471,60]
[424863002,1781212250000,-250.0,0.00034471,7]
[424863005,1781212250000,-171.4062848,0.00034471,60]
[424863037,1781212250000,-458.805876,0.00034666,120]
[424862992,1781212250000,-512.9116401,0.00034468,2]
[424863039,1781212250000,-2100.4541,0.00034718,2]
[424863066,1781212250000,-225.18697534,0.00034768,7]
[424863062,1781212250000,-721.12765534,0.00034768,7]
[424863071,1781212250000,-152.0,0.00034768,7]
[424863068,1781212250000,-693.39197629,0.00034768,7]
[424863073,1781212250000,-747.80937859,0.00034768,7]
[424863079,1781212250000,-483.18894756,0.00034768,7]
[424863093,1781212250000,-152.0,0.00034768,7]
[424863081,1781212250000,-2287.58423773,0.00034768,7]
[424863082,1781212250000,-152.0,0.00034768,7]
[424863080,1781212250000,-1201.65948645,0.00034768,7]
[424863072,1781212250000,-151.0,0.00034768,7]
[424863075,1781212250000,-151.0,0.00034768,7]
[424863069,1781212250000,-1201.65948645,0.00034768,7]
[424863074,1781212250000,-500.0,0.00034768,7]
[424863076,1781212250000,-194.72792766,0.00034768,7]
[424863078,1781212250000,-151.0,0.00034768,7]
[424863084,1781212250000,-500.0,0.00034768,7]
[424863083,1781212250000,-775.4783256,0.00034768,7]
[424863088,1781212250000,-201.93286098,0.00034768,7]
[424863092,1781212250000,-500.0,0.00034768,7]
[424863091,1781212250000,-804.17102365,0.00034768,7]
[424863090,1781212250000,-1201.65948645,0.00034768,7]
[424863085,1781212250000,-151.0,0.00034768,7]
[424863087,1781212250000,-151.0,0.00034768,7]
[424863089,1781212250000,-151.0,0.00034768,7]
[424863046,1781212250000,-333.81194748,0.00034768,7]
[424863077,1781212250000,-151.0,0.00034768,7]
[424863060,1781212250000,-151.0,0.00034768,7]
[424863086,1781212250000,-500.0,0.00034768,7]
[424863065,1781212250000,-151.0,0.00034768,7]
[424863036,1781212250000,-3643.0,0.00034652,2]
[424863064,1781212250000,-187.78006524,0.00034768,7]
[424863035,1781212250000,-6076.0,0.00034652,2]
[424863040,1781212250000,-2000.00000099,0.00034748,5]
[424863038,1781212250000,-647.102562,0.00034678,120]
[424863042,1781212250000,-200.0,0.00034768,7]
[424863043,1781212250000,-200.0,0.00034768,7]
[424863041,1781212250000,-64767.31559185,0.00034765,120]
[424863044,1781212250000,-200.0,0.00034768,7]
[424863048,1781212250000,-599.60298507,0.00034768,7]
[424863050,1781212250000,-621.78829552,0.00034768,7]
[424863052,1781212250000,-174.61919141,0.00034768,7]
[424863049,1781212250000,-1201.65948645,0.00034768,7]
[424863045,1781212250000,-200.0,0.00034768,7]
[424863058,1781212250000,-151.0,0.00034768,7]
[424863067,1781212250000,-151.0,0.00034768,7]
[424863047,1781212250000,-578.20924308,0.00034768,7]
[424863063,1781212250000,-151.0,0.00034768,7]
[424863061,1781212250000,-668.65185756,0.00034768,7]
[424863057,1781212250000,-181.08010149,0.00034768,7]
[424863070,1781212250000,-160.2706454,0.00034768,7]
[424863056,1781212250000,-151.0,0.00034768,7]
[424863053,1781212250000,-644.79446245,0.00034768,7]
[424863054,1781212250000,-1367.87611253,0.00034768,7]
[424863051,1781212250000,-1201.65948645,0.00034768,7]
[424863059,1781212250000,-1201.65948645,0.00034768,7]
[424863055,1781212250000,-1201.65948645,0.00034768,7]
[424863121,1781212251000,-152.0,0.00034768,7]
[424863134,1781212251000,-500.0,0.00034768,7]
[424863124,1781212251000,-151.0,0.00034768,7]
[424863125,1781212251000,-233.5188934,0.00034768,7]
[424863127,1781212251000,-1201.65948645,0.00034768,7]
[424863126,1781212251000,-500.0,0.00034768,7]
[424863128,1781212251000,-151.0,0.00034768,7]
[424863135,1781212251000,-1201.65948645,0.00034768,7]
[424863133,1781212251000,-242.15909246,0.00034768,7]
[424863123,1781212251000,-500.0,0.00034768,7]
[424863147,1781212251000,-151.0,0.00034768,7]
[424863129,1781212251000,-152.0,0.00034768,7]
[424863132,1781212251000,-151.0,0.00034768,7]
[424863130,1781212251000,-151.0,0.00034768,7]
[424863137,1781212251000,-500.0,0.00034768,7]
[424863136,1781212251000,-152.0,0.00034768,7]
[424863138,1781212251000,-151.0,0.00034768,7]
[424863146,1781212251000,-1201.65948645,0.00034768,7]
[424863139,1781212251000,-151.0,0.00034768,7]
[424863145,1781212251000,-500.0,0.00034768,7]
[424863140,1781212251000,-151.0,0.00034768,7]
[424863120,1781212251000,-151.0,0.00034768,7]
[424863143,1781212251000,-152.0,0.00034768,7]
[424863131,1781212251000,-500.0,0.00034768,7]
[424863122,1781212251000,-151.0,0.00034768,7]
[424863104,1781212251000,-151.0,0.00034768,7]
[424863118,1781212251000,-500.0,0.00034768,7]
[424863142,1781212251000,-500.0,0.00034768,7]
[424863094,1781212251000,-151.0,0.00034768,7]
[424863095,1781212251000,-151.0,0.00034768,7]
[424863096,1781212251000,-500.0,0.00034768,7]
[424863097,1781212251000,-151.0,0.00034768,7]
[424863103,1781212251000,-151.0,0.00034768,7]
[424863098,1781212251000,-209.40437684,0.00034768,7]
[424863099,1781212251000,-151.0,0.00034768,7]
[424863102,1781212251000,-152.0,0.00034768,7]
[424863100,1781212251000,-531.19172529,0.00034768,7]
[424863101,1781212251000,-500.0,0.00034768,7]
[424863105,1781212251000,-500.0,0.00034768,7]
[424863107,1781212251000,-151.0,0.00034768,7]
[424863113,1781212251000,-500.0,0.00034768,7]
[424863106,1781212251000,-151.0,0.00034768,7]
[424863110,1781212251000,-1201.65948645,0.00034768,7]
[424863112,1781212251000,-151.0,0.00034768,7]
[424863109,1781212251000,-500.0,0.00034768,7]
[424863108,1781212251000,-217.15233878,0.00034768,7]
[424863111,1781212251000,-152.0,0.00034768,7]
[424863115,1781212251000,-151.0,0.00034768,7]
[424863116,1781212251000,-151.0,0.00034768,7]
[424863117,1781212251000,-225.18697532,0.00034768,7]
[424863119,1781212251000,-1201.65948645,0.00034768,7]
[424863141,1781212251000,-251.11897888,0.00034768,7]
[424863114,1781212251000,-165.55515187,0.00034768,7]
[424863148,1781212251000,-500.0,0.00034768,7]
[424863171,1781212251000,-1200.59855601,0.00034769,7]
[424863178,1781212251000,-321.60449862,0.000348,30]
[424863179,1781212251000,-199.0,0.000348,30]
[424863182,1781212251000,-1001.0,0.00034849,120]
[424863180,1781212251000,-18000.0,0.000348,30]
[424863183,1781212251000,-500.0,0.00034865,2]
[424863181,1781212251000,-200.0,0.00034813,10]
[424863185,1781212251000,-2886.1885,0.00034896,2]
[424863187,1781212251000,-151.0,0.00034899,7]
[424863186,1781212251000,-2977.5286,0.00034896,2]
[424863188,1781212251000,-151.0,0.00034899,7]
[424863191,1781212251000,-286.0,0.000349,120]
[424863190,1781212251000,-151.27920566,0.00034899,7]
[424863189,1781212251000,-151.0,0.00034899,7]
[424863192,1781212251000,-200.0,0.000349,2]
[424863198,1781212251000,-15129.0,0.00034931,10]
[424863194,1781212251000,-1500.0,0.000349,7]
[424863195,1781212251000,-200.0,0.000349,10]
[424863196,1781212251000,-515.0,0.00034909,17]
[424863197,1781212251000,-2100.4541,0.0003491,2]
[424863193,1781212251000,-769.55233372,0.000349,90]
[424863199,1781212251000,-268.0,0.00034931,3]
[424863144,1781212251000,-151.0,0.00034768,7]
[424863177,1781212251000,-1500.0,0.00034795,2]
[424863176,1781212251000,-1570.0,0.00034795,30]
[424863184,1781212251000,-1206.89910895,0.0003487,2]
[424863175,1781212251000,-2977.5286,0.00034773,2]
[424863149,1781212251000,-260.4103811,0.00034768,7]
[424863158,1781212251000,-500.0,0.00034768,7]
[424863157,1781212251000,-152.0,0.00034768,7]
[424863172,1781212251000,-170.36,0.0003477,120]
[424863151,1781212251000,-152.0,0.00034768,7]
[424863152,1781212251000,-1201.65948645,0.00034768,7]
[424863156,1781212251000,-500.0,0.00034768,7]
[424863150,1781212251000,-500.0,0.00034768,7]
[424863155,1781212251000,-270.0455652,0.00034768,7]
[424863154,1781212251000,-151.0,0.00034768,7]
[424863160,1781212251000,-151.0,0.00034768,7]
[424863159,1781212251000,-1201.65948645,0.00034768,7]
[424863153,1781212251000,-151.0,0.00034768,7]
[424863163,1781212251000,-1201.65948645,0.00034768,7]
[424863162,1781212251000,-500.0,0.00034768,7]
[424863173,1781212251000,-154.18,0.0003477,120]
[424863174,1781212251000,-2886.1885,0.00034773,2]
[424863169,1781212251000,-1395.20377704,0.00034769,7]
[424863166,1781212251000,-1201.65948653,0.00034768,7]
[424863170,1781212251000,-1328.5301373,0.00034769,7]
[424863165,1781212251000,-151.0,0.00034768,7]
[424863167,1781212251000,-151.0,0.00034768,7]
[424863164,1781212251000,-164.27410988,0.00034768,7]
[424863161,1781212251000,-280.03725111,0.00034768,7]
[424863168,1781212251000,-1428.7529369,0.00034769,7]
[424863215,1781212252000,-1590.0,0.00035,7]
[424863208,1781212252000,-904.19534487,0.0003497,2]
[424863214,1781212252000,-150.0,0.00035,7]
[424863219,1781212252000,-18577.38633284,0.00035,7]
[424863217,1781212252000,-37154.77266569,0.00035,7]
[424863220,1781212252000,-18577.38633284,0.00035,7]
[424863213,1781212252000,-178.0,0.00035,2]
[424863212,1781212252000,-150.0,0.00035,7]
[424863207,1781212252000,-1000.0,0.0003497,2]
[424863202,1781212252000,-250.02,0.00034938,120]
[424863206,1781212252000,-1000.0,0.0003497,2]
[424863205,1781212252000,-500.0,0.0003497,2]
[424863203,1781212252000,-400.0,0.00034952,2]
[424863204,1781212252000,-400.0,0.00034952,2]
[424863201,1781212252000,-370.43,0.00034931,5]
[424863210,1781212252000,-915.96730151,0.0003499,30]
[424863200,1781212252000,-164.54492975,0.00034931,2]
[424863216,1781212252000,-150.0,0.00035,7]
[424863209,1781212252000,-755.004921,0.00034978,120]
[424863218,1781212252000,-37154.77266569,0.00035,7]
[424863211,1781212252000,-1000.0,0.00034999,31]
[424863222,1781212252000,-18577.38633284,0.00035,7]
[424863240,1781212252000,-452.69893431,0.00035,60]
[424863239,1781212252000,-22262.08601087,0.00035,30]
[424863236,1781212252000,-37154.77266569,0.00035,7]
[424863238,1781212252000,-506.0,0.00035,120]